[Event "Istanbul Open 2017"]
[Site "Istanbul"]
[Date "2017.09.12"]
[Round "2"]
[White "Hagverdiyev, Gahraman"]
[Black "Bacak, Altug"]
[Result "1-0"]
[ECO "E12"]
[WhiteElo "1624"]
[BlackElo "1711"]
[Annotator "NA RC"]
[PlyCount "79"]
[EventDate "2017.??.??"]
[EventType "swiss"]
[EventCountry "TUR"]
[SourceTitle "playchess.com"]
[Source "ChessBase"]
[SourceQuality "1"]
[TimeControl "5400+30"]

1. d4 Nf6 2. c4 e6 3. Nf3 b6 4. a3 c5 5. d5 exd5 6. cxd5 d6 7. Nc3 Ba6 8. g3 Be7 9. Bg2 O-O 10. O-O Nbd7 11. Re1 Re8 12. e4 Ng4 13. h3 Nge5 14. Nxe5 Nxe5 15. f4 Nd3 16. Bf1 c4 17. Bxd3 cxd3 18. Qa4 Qc8 19. Be3 Bf6 20. Rac1 Qxh3 21. Qxa6 Qxg3+ 22. Kf1 Qf3+ 23. Kg1 {[%emt 0:52:30]} d2 {[%emt 1:38:38]} 24. Bxd2 {[%emt 0:00:30]} Bd4+ {[%emt 0:00:30]} 25. Kh2 {[%emt 0:00:30]} Qf2+ {[%emt 0:00:30]} 26. Kh3 {[%emt 0:00:30]} Re5 {[%emt 0:00:30]} 27. Qe2 {[%emt 0:00:30]} Qxe2 {[%emt 0:03:17]} 28. Rxe2 {[%emt 0:00:30]} Rh5+ {[%emt 0:00:07]} 29. Kg4 {[%emt 0:00:30]} g6 {[%emt 0:00:48]} 30. Nb5 {[%emt 0:00:30]} f5+ {[%emt 0:00:37]} 31. exf5 {[%emt 0:00:30]} Bf6 {[%emt 0:00:01]} 32. fxg6 {[%emt 0:01:30]} hxg6 {[%emt 0:00:01]} 33. Re6 {[%emt 0:01:30]} Rf8 {[%emt 0:01:19]} 34. Bc3 {[%emt 0:04:30]} Bxc3 {[%emt 0:00:39]} 35. Nxc3 {[%emt 0:00:30]} Rhf5 {[%emt 0:00:28]} 36. Rf1 {[%emt 0:00:30]} Kg7 {[%emt 0:00:31]} 37. Rxd6 {[%emt 0:00:30]} R8f7 {[%emt 0:00:16]} 38. Ne4 {[%emt 0:00:30]} Re7 {[%emt 0:00:43]} 39. Ng5 {[%emt 0:00:30]} Kh6 {[%emt 0:01:05]} 40. Rh1+ {[%emt 0:00:30]} 1-0

[Event "Istanbul Open 2017"]
[Site "Istanbul"]
[Date "2017.09.12"]
[Round "2"]
[White "Akyuz, Muhammet"]
[Black "Satici, Aydin"]
[Result "0-1"]
[ECO "E10"]
[WhiteElo "1509"]
[BlackElo "1726"]
[Annotator "NA RC"]
[PlyCount "28"]
[EventDate "2017.??.??"]
[EventType "swiss"]
[EventCountry "TUR"]
[SourceTitle "playchess.com"]
[Source "ChessBase"]
[SourceQuality "1"]
[TimeControl "5400+30"]

1. Nf3 {[%emt 0:00:30]} Nc6 {[%emt 0:01:00]} 2. d4 {[%emt 0:01:30]} Nf6 {[%emt 0:03:30]} 3. c4 {[%emt 0:08:30]} e6 {[%emt 0:04:30]} 4. e3 {[%emt 0:02:30]} Bb4+ {[%emt 0:00:30]} 5. Nbd2 {[%emt 0:01:30]} d5 {[%emt 0:03:30]} 6. Bd3 {[%emt 0:14:30]} O-O {[%emt 0:01:30]} 7. h4 {[%emt 0:11:30]} e5 {[%emt 0:04:30]} 8. dxe5 {[%emt 0:01:30]} Ng4 {[%emt 0:03:30]} 9. a3 {[%emt 0:29:30]} Be7 {[%emt 0:06:30]} 10. Nb1 {[%emt 0:07:45]} dxc4 {[%emt 0:03:30]} 11. Bxc4 {[%emt 0:00:53]} Qxd1+ {[%emt 0:00:30]} 12. Kxd1 {[%emt 0:00:02]} Nxf2+ {[%emt 0:00:30]} 13. Ke2 {[%emt 0:00:30]} Nxh1 {[%emt 0:00:30]} 14. Nc3 {[%emt 0:00:16]} Bg4 {[%emt 0:00:30]} 0-1

[Event "Istanbul Open 2017"]
[Site "Istanbul"]
[Date "2017.09.12"]
[Round "2"]
[White "Gulceken, Sumeyye"]
[Black "Gencer, Aybars"]
[Result "0-1"]
[ECO "A41"]
[WhiteElo "1491"]
[BlackElo "1710"]
[Annotator "NA RC"]
[PlyCount "86"]
[EventDate "2017.??.??"]
[EventType "swiss"]
[EventCountry "TUR"]
[SourceTitle "playchess.com"]
[Source "ChessBase"]
[SourceQuality "1"]
[TimeControl "5400+30"]

1. d4 g6 2. c4 Bg7 3. Nc3 d6 4. Nf3 Nd7 5. e3 c5 6. d5 Ngf6 7. Bd3 O-O 8. a4 Ng4 9. Bd2 Nge5 10. Be2 Nxf3+ 11. Bxf3 Ne5 12. Be2 e6 13. f4 Nd7 14. O-O exd5 15. cxd5 a6 16. Qc2 b6 17. Rae1 f5 18. Bf3 Nf6 19. e4 fxe4 20. Nxe4 b5 21. Ng5 Bf5 22. Qd1 b4 23. Ne6 Bxe6 24. dxe6 Ra7 25. Qe2 Qe7 {[%emt 1:07:00]} 26. b3 {[%emt 1:28:48]} Kh8 {[%emt 0:00:30]} 27. g4 {[%emt 0:00:35]} Ng8 {[%emt 0:00:30]} 28. Bc6 {[%emt 0:00:38]} Qc7 {[%emt 0:00:30]} 29. Bd7 {[%emt 0:00:47]} Ne7 {[%emt 0:00:30]} 30. Qd3 {[%emt 0:00:38]} Raa8 {[%emt 0:00:30]} 31. f5 {[%emt 0:00:36]} gxf5 {[%emt 0:00:30]} 32. gxf5 {[%emt 0:00:34]} Bf6 {[%emt 0:06:30]} 33. Qe4 {[%emt 0:04:05]} d5 {[%emt 0:00:30]} 34. Qe2 {[%emt 0:00:52]} c4 {[%emt 0:00:30]} 35. Bf4 {[%emt 0:00:30]} Qc5+ {[%emt 0:07:30]} 36. Kh1 {[%emt 0:02:45]} c3 {[%emt 0:00:30]} 37. Be5 {[%emt 0:00:36]} d4 {[%emt 0:00:30]} 38. Bxf6+ {[%emt 0:02:42]} Rxf6 {[%emt 0:00:30]} 39. Qe5 {[%emt 0:01:19]} Qxe5 {[%emt 0:00:00]} 40. Rxe5 {[%emt 0:00:07]} d3 {[%emt 0:00:00]} 41. Re3 {[%emt 0:01:25]} d2 {[%emt 0:00:30]} 42. Rd3 {[%emt 0:00:42]} Rxf5 {[%emt 0:00:30]} 43. Rxf5 {[%emt 0:02:40]} Nxf5 {[%emt 0:00:30]} 0-1

[Event "Istanbul Open 2017"]
[Site "Istanbul"]
[Date "2017.09.12"]
[Round "3"]
[White "Kilic, Eray"]
[Black "Hajiyev, Ulvu"]
[Result "1-0"]
[ECO "B00"]
[WhiteElo "1727"]
[BlackElo "1658"]
[Annotator "NA RC"]
[PlyCount "117"]
[EventDate "2017.??.??"]
[EventType "swiss"]
[EventCountry "TUR"]
[SourceTitle "playchess.com"]
[Source "ChessBase"]
[SourceQuality "1"]
[TimeControl "5400+30"]

1. e4 Nc6 2. Nf3 d6 3. d4 Bg4 4. Be2 e5 5. d5 Bxf3 6. Bxf3 Nce7 7. Nc3 g6 8. Qd3 a6 9. g4 Qd7 10. Be3 O-O-O 11. O-O-O f5 12. gxf5 gxf5 13. Rhg1 Nf6 14. Bg5 Neg8 15. exf5 Re8 16. Ne4 Be7 17. Bxf6 Nxf6 18. Rg7 Qd8 19. Qe3 Kb8 20. Kb1 {[%emt 0:58:00]} Reg8 {[%emt 0:54:30]} 21. Rg3 {[%emt 0:06:30]} Nxe4 {[%emt 0:01:30]} 22. Qxe4 {[%emt 0:01:30]} Bg5 {[%emt 0:00:30]} 23. Bh5 {[%emt 0:01:30]} Bf4 {[%emt 0:02:30]} 24. Rb3 {[%emt 0:00:00]} Qf6 {[%emt 0:03:30]} 25. Be2 {[%emt 0:04:00]} Ka7 {[%emt 0:01:30]} 26. Qb4 {[%emt 0:00:30]} Rb8 {[%emt 0:00:30]} 27. Qa5 {[%emt 0:00:00]} Qd8 {[%emt 0:04:30]} 28. Qa4 {[%emt 0:07:00]} Rg8 {[%emt 0:00:30]} 29. Ra3 {[%emt 0:00:30]} Qc8 {[%emt 0:02:30]} 30. Bb5 {[%emt 0:03:30]} Rg7 {[%emt 0:01:30]} 31. h4 {[%emt 0:02:47]} Ra8 {[%emt 0:00:30]} 32. Bd3 {[%emt 0:01:27]} Rg2 {[%emt 0:03:30]} 33. Bb5 {[%emt 0:03:18]} Rg7 {[%emt 0:01:30]} 34. f6 {[%emt 0:01:27]} Rf7 {[%emt 0:00:30]} 35. Rb3 {[%emt 0:00:52]} Rb8 {[%emt 0:03:30]} 36. h5 {[%emt 0:01:50]} Qg4 {[%emt 0:02:30]} 37. f3 {[%emt 0:00:25]} Qc8 {[%emt 0:02:30]} 38. Ra3 {[%emt 0:01:58]} Ra8 {[%emt 0:01:46]} 39. Qa5 {[%emt 0:00:52]} Rxf6 {[%emt 0:00:58]} 40. Rc3 {[%emt 0:00:07]} Rf7 {[%emt 0:01:07]} 41. a3 {[%emt 0:00:50]} Qd8 {[%emt 0:01:23]} 42. Qa4 {[%emt 0:01:22]} Kb8 {[%emt 0:00:36]} 43. Bc6 {[%emt 0:00:33]} bxc6 {[%emt 0:02:00]} 44. Qb3+ {[%emt 0:00:11]} Ka7 {[%emt 0:00:19]} 45. dxc6 {[%emt 0:00:05]} Rb8 {[%emt 0:00:08]} 46. Qxf7 {[%emt 0:00:05]} h6 {[%emt 0:00:55]} 47. Qd7 {[%emt 0:00:28]} Qxd7 {[%emt 0:01:27]} 48. cxd7 {[%emt 0:00:05]} Rd8 {[%emt 0:00:08]} 49. Rxc7+ {[%emt 0:00:10]} Kb6 {[%emt 0:00:07]} 50. Rc8 {[%emt 0:00:02]} Rxd7 {[%emt 0:00:13]} 51. c4 {[%emt 0:00:05]} Kb7 {[%emt 0:02:25]} 52. Rf8 {[%emt 0:00:08]} Bg5 {[%emt 0:01:01]} 53. c5 {[%emt 0:00:38]} d5 {[%emt 0:00:02]} 54. Rf5 {[%emt 0:00:09]} Bf4 {[%emt 0:01:10]} 55. Rf6 {[%emt 0:00:29]} Kc7 {[%emt 0:01:04]} 56. Rxa6 {[%emt 0:00:27]} d4 {[%emt 0:00:26]} 57. Ra7+ {[%emt 0:00:07]} Kc8 {[%emt 0:00:01]} 58. Rxd7 {[%emt 0:00:10]} Kxd7 {[%emt 0:00:30]} 59. Kc2 {[%emt 0:00:00]} 1-0

[Event "Istanbul Open 2017"]
[Site "Istanbul"]
[Date "2017.09.12"]
[Round "3"]
[White "Satici, Aydin"]
[Black "Kabadayi, Suleyman Arda"]
[Result "0-1"]
[ECO "A29"]
[WhiteElo "1726"]
[BlackElo "1579"]
[Annotator "NA RC"]
[PlyCount "108"]
[EventDate "2017.??.??"]
[EventType "swiss"]
[EventCountry "TUR"]
[SourceTitle "playchess.com"]
[Source "ChessBase"]
[SourceQuality "1"]
[TimeControl "5400+30"]

1. c4 e5 2. g3 Nf6 3. Bg2 d5 4. cxd5 Nxd5 5. Nc3 Nb6 6. Nf3 Nc6 7. O-O Be7 8. a3 O-O 9. b4 a6 10. d3 Re8 11. Bb2 Bf8 12. Rc1 Bg4 13. Ne4 Qd7 14. Nc5 Bxc5 15. Rxc5 f6 16. Qb3+ Be6 17. Qc2 Bd5 18. e4 Bf7 19. Rd1 Rac8 20. d4 Red8 21. d5 Ne7 {[%emt 1:07:00]} 22. Rc3 {[%emt 0:48:00]} Bg6 {[%emt 0:12:30]} 23. Re3 {[%emt 0:06:30]} Qd6 {[%emt 0:05:11]} 24. Nh4 {[%emt 0:04:30]} Be8 {[%emt 0:02:03]} 25. Rc1 {[%emt 0:01:30]} c6 {[%emt 0:00:57]} 26. Bh3 {[%emt 0:03:30]} Bd7 {[%emt 0:02:31]} 27. Bxd7 {[%emt 0:00:30]} Rxd7 {[%emt 0:01:49]} 28. dxc6 {[%emt 0:01:30]} Rxc6 {[%emt 0:01:39]} 29. Qb3+ {[%emt 0:01:30]} Kf8 {[%emt 0:00:31]} 30. Ree1 {[%emt 0:07:30]} Qd3 {[%emt 0:04:45]} 31. Qxd3 {[%emt 0:06:30]} Rxd3 {[%emt 0:00:05]} 32. Rxc6 {[%emt 0:06:24]} Nxc6 {[%emt 0:00:05]} 33. Re3 {[%emt 0:01:27]} Rxe3 {[%emt 0:01:01]} 34. fxe3 {[%emt 0:00:02]} Nc4 {[%emt 0:00:18]} 35. Bc1 {[%emt 0:00:18]} a5 {[%emt 0:01:34]} 36. b5 {[%emt 0:00:54]} Na7 {[%emt 0:00:50]} 37. a4 {[%emt 0:00:33]} Nc8 {[%emt 0:00:33]} 38. Nf3 {[%emt 0:02:36]} N8b6 {[%emt 0:01:09]} 39. Nd2 {[%emt 0:00:24]} Nxe3 {[%emt 0:01:22]} 40. Nb3 {[%emt 0:02:31]} Nec4 {[%emt 0:01:22]} 41. Nc5 {[%emt 0:00:42]} Ke7 {[%emt 0:02:29]} 42. Kf2 {[%emt 0:02:33]} Nd6 {[%emt 0:00:58]} 43. Bd2 {[%emt 0:01:21]} Nbc4 {[%emt 0:00:39]} 44. Be1 {[%emt 0:06:01]} b6 {[%emt 0:00:22]} 45. Nb3 {[%emt 0:01:04]} Nxe4+ {[%emt 0:00:19]} 46. Kf3 {[%emt 0:00:36]} Ned6 {[%emt 0:00:37]} 47. Bf2 {[%emt 0:00:48]} e4+ {[%emt 0:00:41]} 48. Ke2 {[%emt 0:00:19]} e3 {[%emt 0:00:37]} 49. Bxe3 {[%emt 0:00:27]} Nxe3 {[%emt 0:00:01]} 50. Kxe3 {[%emt 0:00:02]} Nc4+ {[%emt 0:00:26]} 51. Kd4 {[%emt 0:00:39]} Nb2 {[%emt 0:00:27]} 52. Kd5 {[%emt 0:00:41]} Kd7 {[%emt 0:00:21]} 53. Nd2 {[%emt 0:00:46]} Nxa4 {[%emt 0:00:22]} 54. Nc4 {[%emt 0:01:03]} Nc3+ {[%emt 0:00:25]} 0-1

[Event "Istanbul Open 2017"]
[Site "Istanbul"]
[Date "2017.09.12"]
[Round "3"]
[White "Gencer, Aybars"]
[Black "Sulak, Yusuf"]
[Result "0-1"]
[ECO "D32"]
[WhiteElo "1710"]
[BlackElo "1636"]
[Annotator "NA RC"]
[PlyCount "43"]
[EventDate "2017.??.??"]
[EventType "swiss"]
[EventCountry "TUR"]
[SourceTitle "playchess.com"]
[Source "ChessBase"]
[SourceQuality "1"]
[TimeControl "5400+30"]

1. d4 d5 2. Nf3 Nf6 3. c4 e6 4. Nc3 c5 5. cxd5 exd5 6. Bg5 Be6 7. e3 Nbd7 8. dxc5 Bxc5 9. Nd4 Qb6 10. Qd2 Ne4 11. Nxe4 dxe4 12. a3 Bxd4 13. Qxd4 Qa5+ {[%emt 1:09:00]} 14. Qb4 {[%emt 0:44:00]} Qxg5 {[%emt 0:00:30]} 15. Qxb7 {[%emt 0:00:00]} O-O {[%emt 0:02:30]} 16. Qxe4 {[%emt 0:00:00]} Nc5 {[%emt 0:01:30]} 17. Qc2 {[%emt 0:02:30]} Nb3 {[%emt 0:00:30]} 18. Rd1 {[%emt 0:00:00]} Rac8 {[%emt 0:01:30]} 19. Qb1 {[%emt 0:00:00]} Qa5+ {[%emt 0:02:30]} 20. Ke2 {[%emt 0:00:30]} Bc4+ {[%emt 0:01:30]} 21. Kf3 {[%emt 0:00:00]} Nd2+ {[%emt 0:00:30]} 22. Kf4 {[%emt 0:00:00]} 0-1

[Event "Istanbul Open 2017"]
[Site "Istanbul"]
[Date "2017.09.12"]
[Round "3"]
[White "Aslan, Dogukan"]
[Black "Portakalci, Yusuf"]
[Result "1-0"]
[ECO "E17"]
[WhiteElo "1605"]
[BlackElo "1671"]
[Annotator "NA RC"]
[PlyCount "111"]
[EventDate "2017.??.??"]
[EventType "swiss"]
[EventCountry "TUR"]
[SourceTitle "playchess.com"]
[Source "ChessBase"]
[SourceQuality "1"]
[TimeControl "5400+30"]

1. Nf3 Nf6 2. c4 e6 3. g3 b6 4. Bg2 Bb7 5. O-O Be7 6. d4 d6 7. Nbd2 O-O 8. b3 Ne4 9. Bb2 Nxd2 10. Qxd2 Nd7 11. Rfd1 Re8 12. Qc2 Bf6 13. e4 e5 14. dxe5 dxe5 15. c5 bxc5 16. Bh3 Bc6 17. Bxd7 Bxd7 18. Qxc5 Be7 19. Qd5 Bd6 {[%emt 1:00:00]} 20. Nxe5 {[%emt 1:05:00]} Bxe5 {[%emt 0:08:30]} 21. Bxe5 {[%emt 0:01:30]} Bg4 {[%emt 0:00:30]} 22. Qxd8 {[%emt 0:00:30]} Raxd8 {[%emt 0:00:30]} 23. Rxd8 {[%emt 0:00:30]} Rxd8 {[%emt 0:00:30]} 24. Bxc7 {[%emt 0:00:30]} Rd2 {[%emt 0:00:30]} 25. Bf4 {[%emt 0:00:30]} Re2 {[%emt 0:00:30]} 26. Be3 {[%emt 0:01:30]} a6 {[%emt 0:00:30]} 27. Kg2 {[%emt 0:01:30]} f6 {[%emt 0:04:30]} 28. h3 {[%emt 0:00:30]} Be6 {[%emt 0:00:30]} 29. g4 {[%emt 0:00:30]} a5 {[%emt 0:00:30]} 30. Kf3 {[%emt 0:00:30]} Rc2 {[%emt 0:00:30]} 31. Bb6 {[%emt 0:00:30]} a4 {[%emt 0:00:00]} 32. bxa4 {[%emt 0:00:30]} Rxa2 {[%emt 0:00:00]} 33. Rxa2 {[%emt 0:00:30]} Bxa2 {[%emt 0:00:30]} 34. Ke3 {[%emt 0:00:30]} Bc4 {[%emt 0:00:30]} 35. Kd4 {[%emt 0:00:00]} Bf1 {[%emt 0:00:30]} 36. h4 {[%emt 0:00:00]} Kf7 {[%emt 0:00:30]} 37. a5 {[%emt 0:00:30]} Kg6 {[%emt 0:00:30]} 38. f4 {[%emt 0:01:30]} h6 {[%emt 0:01:30]} 39. Bc7 {[%emt 0:00:30]} Be2 {[%emt 0:00:30]} 40. Ke3 {[%emt 0:01:30]} Bb5 {[%emt 0:00:30]} 41. Kd4 {[%emt 0:02:30]} Be2 {[%emt 0:01:30]} 42. Kc5 {[%emt 0:01:30]} Kf7 {[%emt 0:02:30]} 43. Kb6 {[%emt 0:00:30]} Bxg4 {[%emt 0:00:30]} 44. a6 {[%emt 0:01:30]} Bf3 {[%emt 0:00:30]} 45. e5 {[%emt 0:00:30]} fxe5 {[%emt 0:00:30]} 46. Bxe5 {[%emt 0:00:30]} Kg6 {[%emt 0:04:30]} 47. Kc7 {[%emt 0:00:30]} Kf7 {[%emt 0:01:53]} 48. a7 {[%emt 0:00:30]} g6 {[%emt 0:00:14]} 49. Kb8 {[%emt 0:00:00]} Ke6 {[%emt 0:00:33]} 50. Bg7 {[%emt 0:00:00]} g5 {[%emt 0:00:30]} 51. fxg5 {[%emt 0:00:30]} hxg5 {[%emt 0:00:30]} 52. hxg5 {[%emt 0:00:30]} Kf5 {[%emt 0:00:30]} 53. Bf6 {[%emt 0:00:30]} Kg6 {[%emt 0:00:30]} 54. a8=Q {[%emt 0:00:30]} Bxa8 {[%emt 0:00:30]} 55. Kxa8 {[%emt 0:00:30]} Kf5 {[%emt 0:00:30]} 56. Kb7 {[%emt 0:00:30]} 1-0

[Event "Istanbul Open 2017"]
[Site "Istanbul"]
[Date "2017.09.12"]
[Round "3"]
[White "Gultekin, Celal"]
[Black "Elmas, Mustafa"]
[Result "1-0"]
[ECO "D47"]
[WhiteElo "1560"]
[BlackElo "1736"]
[Annotator "NA RC"]
[PlyCount "83"]
[EventDate "2017.??.??"]
[EventType "swiss"]
[EventCountry "TUR"]
[SourceTitle "playchess.com"]
[Source "ChessBase"]
[SourceQuality "1"]
[TimeControl "5400+30"]

1. Nf3 d5 2. c4 c6 3. d4 e6 4. Nc3 Nf6 5. e3 Nbd7 6. Bd3 dxc4 7. Bxc4 b5 8. Bd3 Be7 9. O-O Bb7 10. e4 b4 11. e5 bxc3 12. exf6 Bxf6 13. bxc3 O-O 14. Ba3 Re8 15. Bxh7+ Kxh7 16. Qb1+ Kg8 17. Qxb7 Rc8 18. Bd6 c5 19. Ne5 Nxe5 20. dxe5 Be7 21. Rfd1 {[%emt 0:54:30]} Qb6 {[%emt 0:59:00]} 22. Rab1 {[%emt 0:06:30]} Qxb7 {[%emt 0:00:00]} 23. Rxb7 {[%emt 0:00:00]} Bf8 {[%emt 0:03:00]} 24. Rxa7 {[%emt 0:03:00]} Ra8 {[%emt 0:07:30]} 25. Rc7 {[%emt 0:10:30]} Rxa2 {[%emt 0:01:30]} 26. Rxc5 {[%emt 0:02:30]} Rea8 {[%emt 0:02:30]} 27. g3 {[%emt 0:03:30]} Rd8 {[%emt 0:07:30]} 28. Rc4 {[%emt 0:02:30]} Rc2 {[%emt 0:02:30]} 29. Rd3 {[%emt 0:02:12]} g6 {[%emt 0:01:32]} 30. Rcd4 {[%emt 0:04:02]} Rc8 {[%emt 0:08:29]} 31. Bxf8 {[%emt 0:02:34]} Kxf8 {[%emt 0:00:23]} 32. Rd8+ {[%emt 0:00:34]} Rxd8 {[%emt 0:00:06]} 33. Rxd8+ {[%emt 0:00:06]} Ke7 {[%emt 0:00:01]} 34. Rc8 {[%emt 0:00:17]} Kd7 {[%emt 0:02:48]} 35. Rc5 {[%emt 0:00:48]} Ke7 {[%emt 0:01:49]} 36. Kg2 {[%emt 0:01:16]} Kd7 {[%emt 0:00:33]} 37. h4 {[%emt 0:01:03]} Ke7 {[%emt 0:01:40]} 38. Kf3 {[%emt 0:00:19]} f6 {[%emt 0:01:44]} 39. Rc7+ {[%emt 0:02:49]} Kd8 {[%emt 0:00:01]} 40. exf6 {[%emt 0:00:21]} Kxc7 {[%emt 0:02:05]} 41. f7 {[%emt 0:00:10]} Rxc3+ {[%emt 0:00:05]} 42. Kg2 {[%emt 0:00:28]} 1-0

[Event "Istanbul Open 2017"]
[Site "Istanbul"]
[Date "2017.09.13"]
[Round "4"]
[White "Kocyigit, Buse Naz"]
[Black "Zeydan, Salih"]
[Result "1/2-1/2"]
[ECO "D05"]
[WhiteElo "1863"]
[BlackElo "2057"]
[Annotator "NA RC"]
[PlyCount "140"]
[EventDate "2017.??.??"]
[EventType "swiss"]
[EventCountry "TUR"]
[SourceTitle "playchess.com"]
[Source "ChessBase"]
[SourceQuality "1"]
[TimeControl "5400+30"]

{[%evp 12,137,10,7,32767,0,28,9,32767,3,0,-20,-4,0,0,0,-3,-25,-32,-30,-31,-58,-68,-34,-61,-66,-4,32767,32767,32767,32767,32767,32767,32767,32767,32767,32767,32767,32767,32767,32767,32767,32767,32767,32767,0,0,-19,-56,32767,32767,32767,32767,140,140,-27,-34,32767,32767,32767,32767,32767,189,32767,32767,0,8,0,41,0,0,0,5,0,0,0,4,0,0,0,0,0,11,0,0,0,32767,32767,32767,32767,32767,32767,32767,32767,32767,32767,32767,0,0,0,0,32767,32767,32767,32767,32767,32767,32767,0,0,80,0,0,0,32767,32767,32767,32767,32767,32767,32767,0,32767,32767,0,32767,32767,0]} 1. d4 {[%emt 0:00:30]} c5 {[%emt 0:02:00]} 2. e3 {[%emt 0:07:30]} Nf6 {[%emt 0:00:30]} 3. Nf3 {[%emt 0:00:30]} e6 {[%emt 0:00:30]} 4. Bd3 {[%emt 0:00:00]} d5 {[%emt 0:01:30]} 5. c3 {[%emt 0:00:00]} Nc6 {[%emt 0:01:30]} 6. Nbd2 {[%emt 0:00:30]} Bd6 {[%emt 0:01:30]} 7. O-O {[%emt 0:00:30]} O-O {[%emt 0:02:30]} 8. dxc5 {[%emt 0:03:30] LiveBook: 188 Games} Bxc5 {[%emt 0:00:30]} 9. e4 {[%emt 0:03:30]} Qc7 {[%emt 0:12:30]} 10. exd5 {[%emt 0:21:30]} Nxd5 {[%emt 0:04:30] D05: Damenbauernspiele (Colle-Aufbau)} 11. Qc2 {[%emt 0:03:30]} (11. Nb3 Be7 12. Nbd4 Nxd4 13. Nxd4 Rd8 14. Qe2 g6 15. Rd1 Nf4 16. Bxf4 Qxf4 17. g3 Qc7 18. Be4 {0-1 (47) Mansour,S (2249)-Karjakin,S (2786) Tromsoe 2014}) 11... h6 {[%emt 0:03:30]} 12. Re1 {[%emt 0:05:30]} Rd8 {[%emt 0:04:30]} 13. a3 $146 {[%emt 0:02:30]} ({Vorgänger:} 13. Ne4 Bb6 14. a4 a6 15. Bd2 e5 16. Ng3 {0-1 (23) Szczygiel,M (1711)-Slabicki,A (2019) Wroclaw 2007}) 13... b6 {[%emt 0:07:30]} 14. Bf1 {[%emt 0:10:30]} Bb7 {[%emt 0:12:30]} 15. b4 {[%emt 0:03:30]} Bd6 {[%emt 0:14:30]} 16. c4 {[%emt 0:01:30]} Nf6 {[%emt 0:00:30]} 17. Bb2 {[%emt 0:00:30]} Ng4 {[%emt 0:00:30]} 18. g3 {[%emt 0:00:30]} Be5 {[%emt 0:05:48]} (18... a5 $5 {[%cal Ra5b4]} 19. Bh3 Nce5 20. Nxe5 Nxe5 $17) 19. Bg2 {[%emt 0:00:30]} Nd4 {[%emt 0:00:30]} 20. Nxd4 {[%emt 0:02:30]} Bxd4 {[%emt 0:01:02]} 21. Bxd4 {[%emt 0:01:30]} Rxd4 {[%emt 0:01:09]} 22. Bxb7 {[%emt 0:00:30]} Qxb7 {[%emt 0:00:06]} 23. Nb3 {[%emt 0:00:30]} Rd7 {[%emt 0:02:35]} 24. c5 {[%emt 0:03:30]} Rc7 {[%emt 0:06:23]} 25. Rac1 {[%emt 0:00:30]} bxc5 {[%emt 0:00:27]} 26. Nxc5 {[%emt 0:00:30]} Qf3 {[%emt 0:00:54]} 27. Qe2 {[%emt 0:04:25]} Qf5 {[%emt 0:01:55]} 28. Qc2 {[%emt 0:00:30]} (28. Ne4 $5 {[%cal Rc1c7]} Rd7 29. Rc5 $11) 28... Qh5 {[%emt 0:00:30]} 29. f4 {[%emt 0:01:44]} a5 {[%emt 0:01:23]} 30. Qb2 {[%emt 0:00:30]} axb4 {[%emt 0:00:30]} 31. Nxe6 {[%emt 0:00:30]} Rc3 {[%emt 0:00:30]} 32. axb4 {[%emt 0:00:45]} Rac8 {[%emt 0:01:03]} 33. Nc5 $2 {[%emt 0:00:15]} (33. Rxc3 $18 Rxc3 34. Nxg7) 33... R8xc5 {[%emt 0:00:34]} 34. bxc5 {[%emt 0:01:37]} Qxc5+ {[%emt 0:00:02]} 35. Kh1 {[%emt 0:00:41]} Qd5+ {[%emt 1:47:15]} 36. Qg2 {[%emt 1:46:52]} Qd4 $2 {[%emt 0:00:30]} (36... Nf2+ $1 $11 {and Black is okay.} 37. Kg1 Nh3+ 38. Kh1 Nf2+ 39. Kg1 Nh3+ 40. Kh1 Nf2+) 37. Rxc3 {[%emt 0:00:30]} Nf2+ {[%emt 0:00:30] [#]} 38. Qxf2 $2 {[%emt 0:01:06]} (38. Kg1 $1 $18 Nd3+ 39. Kf1 Qxc3 40. Re8+ Kh7 41. Qe4+ g6 42. f5 gxf5 43. Qxf5+ Kg7 44. Qg4+ Kf6 45. Qf3+ Kg7 46. Qg4+ Kf6 47. Kg2) 38... Qxf2 {[%emt 0:00:08]} 39. Rce3 {[%emt 0:00:30]} h5 {[%emt 0:00:24]} 40. R3e2 {[%emt 0:00:11]} Qf3+ {[%emt 0:00:43]} 41. Kg1 {[%emt 0:00:00]} h4 {[%emt 0:00:47]} 42. Re3 {[%emt 0:00:31]} Qg4 {[%emt 0:00:27]} 43. Kg2 {[%emt 0:00:48]} Qf5 {[%emt 0:00:35]} 44. R3e2 {[%emt 0:01:01]} (44. Re5 $5 {[%cal Re5f5]} Qd7 45. Re7 Qc6+ 46. Kh3 $14) 44... g6 {[%emt 0:00:34]} 45. Re5 {[%emt 0:00:30]} Qc2+ {[%emt 0:00:22]} 46. R5e2 {[%emt 0:00:11]} Qc6+ {[%emt 0:00:40]} 47. Kg1 {[%emt 0:00:07]} Kg7 {[%emt 0:00:36]} 48. Re3 {[%emt 0:01:00]} Qc5 {[%emt 0:00:30]} 49. Kh1 {[%emt 0:00:30]} Qd5+ {[%emt 0:00:30]} 50. Kg1 {[%emt 0:00:30]} Qd4 {[%emt 0:00:30]} 51. Kh1 {[%emt 0:00:30]} Kh6 {[%emt 0:00:19]} 52. Re4 {[%emt 0:00:48]} Qc3 {[%emt 0:00:16]} 53. R4e3 {[%emt 0:00:12]} Qc6+ {[%emt 0:00:42]} 54. Kg1 {[%emt 0:00:07]} hxg3 {[%emt 0:00:43]} 55. hxg3 {[%emt 0:00:32]} Kh5 {[%emt 0:00:25]} 56. Kf2 {[%emt 1:54:58]} Kg4 {[%emt 0:00:30]} 57. R1e2 {[%emt 0:00:30]} Qh1 {[%emt 0:00:30]} 58. Re1 {[%emt 0:00:30]} Qh2+ {[%emt 0:00:30]} 59. Kf1 {[%emt 0:02:26]} Kh3 {[%emt 1:59:23]} 60. R1e2 {[%emt 0:00:35]} Qh1+ {[%emt 0:00:40]} 61. Kf2 {[%emt 0:00:30]} f6 {[%emt 0:00:17]} 62. Rf3 {[%emt 0:01:11]} Qg2+ {[%emt 0:00:34]} 63. Ke3 {[%emt 0:00:12]} Qg1+ {[%emt 0:00:06]} 64. Kd2 {[%emt 0:00:41]} Qd4+ {[%emt 0:00:23]} 65. Rd3 {[%emt 0:00:33]} Qb2+ {[%emt 0:00:19]} 66. Kd1 {[%emt 2:01:45]} Qb1+ {[%emt 2:01:40]} 67. Kd2 {[%emt 0:00:30]} Qb4+ {[%emt 0:00:30]} 68. Kd1 {[%emt 0:00:30]} Kg4 {[%emt 0:00:30]} 69. Kc2 $11 {[%emt 0:00:30]} Qc4+ {[%emt 0:00:30]} 70. Kd2 {[%emt 0:00:30]} Qb4+ {[%emt 0:00:30]} 1/2-1/2